bitfinex-derivatives/quotes_BTCF0:USTF0_20250915
["timestamp","ask_amount","ask_price","bid_price","bid_amount"]
[1757926908304,0.07369406,114910.0,114900.0,0.01349]
[1757926908605,0.1403437,114910.0,114900.0,0.01349]
[1757926908799,1.00041406,114910.0,114900.0,0.01349]
[1757926909001,0.06969406,114910.0,114900.0,0.01349]
[1757926909198,1.00025406,114910.0,114900.0,0.01349]
[1757926909600,0.06969406,114910.0,114900.0,0.01349]
[1757926909813,0.99933406,114910.0,114900.0,0.01349]
[1757926910707,1.00433406,114910.0,114900.0,0.01349]
[1757926911303,1.25433406,114910.0,114900.0,0.01349]
[1757926911714,1.25435355,114910.0,114900.0,0.01349]
[1757926911915,1.1925426,114910.0,114890.0,0.01349]
[1757926912111,0.31180891,114900.0,114890.0,0.01349]
[1757926913411,1.23924891,114900.0,114890.0,0.01349]
[1757926913619,0.14350904,114910.0,114900.0,0.014]
[1757926913817,0.16256513,114910.0,114900.0,0.014]
[1757926914018,1.08920513,114910.0,114900.0,0.014]
[1757926914311,1.02739622,114910.0,114900.0,0.014]
[1757926914816,1.02219622,114910.0,114900.0,0.014]
[1757926915510,1.02719622,114910.0,114900.0,0.014]
[1757926915713,0.10075622,114910.0,114900.0,0.014]
[1757926916012,1.02647622,114910.0,114900.0,0.014]
[1757926916316,1.08828831,114910.0,114900.0,0.014]
[1757926917118,0.16256831,114910.0,114900.0,0.014]
[1757926917322,1.08748831,114910.0,114900.0,0.014]
[1757926917610,0.16256831,114910.0,114900.0,0.014]
[1757926917816,1.08740831,114910.0,114900.0,0.014]
[1757926918017,0.16256831,114910.0,114900.0,0.014]
[1757926918214,1.02503622,114910.0,114900.0,0.03733]
[1757926918817,1.02503622,114910.0,114900.0,0.014]
[1757926919216,1.02503719,114910.0,114900.0,0.014]
[1757926920016,1.02475719,114910.0,114900.0,0.014]
[1757926920321,0.10075719,114910.0,114900.0,0.014]
[1757926920614,0.10075719,114910.0,114900.0,0.53341914]
[1757926920615,0.14712314,114910.0,114900.0,0.53341914]
[1757926920819,0.1316698,114910.0,114900.0,0.53341914]
[1757926921019,0.09285459,114910.0,114900.0,0.53341914]
[1757926921413,0.08785459,114910.0,114900.0,0.53341914]
[1757926921613,0.09185459,114910.0,114900.0,0.28341914]
[1757926921818,0.1227672,114910.0,114900.0,0.28341914]
[1757926922219,0.1369016,114910.0,114900.0,0.28341914]
[1757926923215,0.1369016,114910.0,114900.0,0.014]
[1757926923420,0.15235494,114910.0,114900.0,0.014]
[1757926923921,0.40235494,114910.0,114900.0,0.014]
[1757926924120,0.35598899,114910.0,114900.0,0.014]
[1757926924617,0.06181209,114920.0,114900.0,0.03733]
[1757926924823,0.1896,114970.0,114940.0,0.014]
[1757926925122,0.1896,114960.0,114940.0,0.014]
[1757926925424,0.93520387,114950.0,114940.0,0.014]
[1757926925614,0.00149,114940.0,114930.0,0.00500672]
[1757926925817,0.00149,114940.0,114920.0,0.00899328]
[1757926925818,0.01665387,114940.0,114920.0,0.00899328]
[1757926926017,0.01665387,114940.0,114930.0,0.03504]
[1757926926615,0.93625387,114940.0,114930.0,0.03504]
[1757926927121,0.01665387,114940.0,114930.0,0.03504]
[1757926927432,0.02328874,114960.0,114950.0,0.03504]
[1757926927618,0.02466387,114960.0,114950.0,0.03504]
[1757926927926,0.08434387,114960.0,114950.0,0.03504]
[1757926928227,0.94310387,114960.0,114950.0,0.01349]
[1757926929121,0.02466387,114960.0,114950.0,0.01349]
[1757926929322,0.94318387,114960.0,114950.0,0.03504]
[1757926929524,0.94314387,114960.0,114950.0,0.03504]
[1757926930020,0.95707946,114960.0,114940.0,0.01349]
[1757926930221,0.91856,114950.0,114940.0,0.0129379]
[1757926930421,0.0095,114950.0,114940.0,0.0129379]
[1757926930621,0.94478387,114950.0,114940.0,0.01349]
[1757926931532,0.94478387,114950.0,114940.0,0.026421]
[1757926931730,0.02466387,114950.0,114940.0,0.026421]
[1757926931927,0.02466387,114950.0,114940.0,0.01349]
[1757926932125,0.94390387,114950.0,114940.0,0.01349]
[1757926932325,0.02666387,114950.0,114940.0,0.03504]
[1757926932630,0.09764357,114950.0,114940.0,0.03504]
[1757926932824,1.01668357,114950.0,114940.0,0.03504]
[1757926933020,0.09764357,114950.0,114940.0,0.04796772]
[1757926933223,1.01732357,114950.0,114930.0,0.01349]
[1757926933431,0.02466387,114940.0,114920.0,0.00899328]
[1757926933632,0.0095,114930.0,114920.0,0.00899328]
[1757926933828,0.92914,114930.0,114920.0,0.02191827]
[1757926934028,0.94418387,114930.0,114920.0,0.04346827]
[1757926934227,0.94410387,114930.0,114920.0,0.04346827]
[1757926934430,0.02466387,114930.0,114920.0,0.04346827]
[1757926934631,0.94374387,114930.0,114920.0,0.04346827]
[1757926934926,0.02466387,114930.0,114920.0,0.04346827]
[1757926935233,0.23586387,114930.0,114920.0,0.04346827]
[1757926935426,0.0729797,114950.0,114920.0,0.29346827]
[1757926935637,0.09564357,114950.0,114940.0,0.03504]
[1757926935833,0.09664357,114950.0,114940.0,0.03504]
[1757926936030,1.01500357,114950.0,114940.0,0.03504]
[1757926936338,0.09564357,114950.0,114940.0,0.03504]
[1757926937140,1.01264357,114950.0,114940.0,0.01349]
[1757926937330,0.09564357,114950.0,114930.0,0.01349]
[1757926937531,0.94166387,114940.0,114930.0,0.01349]
[1757926937735,0.94114387,114940.0,114930.0,0.01349]
[1757926938330,1.19114387,114940.0,114920.0,0.00899328]
[1757926938530,0.0095,114920.0,114910.0,0.01349]
[1757926938732,0.92546,114920.0,114910.0,0.01349]
[1757926938927,0.94062387,114920.0,114910.0,0.01349]
[1757926939132,0.94062387,114920.0,114910.0,0.03504]
[1757926939832,1.0119493,114920.0,114910.0,0.03504]
[1757926940538,1.0119493,114920.0,114910.0,0.01549]
[1757926940734,1.2678893,114920.0,114910.0,0.002]
[1757926941037,2.9380093,114920.0,114910.0,0.002]
[1757926941840,2.9380093,114920.0,114900.0,0.0064]
[1757926942142,0.02466387,114910.0,114900.0,0.0064]
[1757926942440,0.93814387,114910.0,114900.0,0.01989]
[1757926942640,0.02466387,114910.0,114900.0,0.01989]
[1757926942943,0.93814387,114910.0,114900.0,0.01989]
[1757926943143,0.93814387,114910.0,114900.0,0.0064]
[1757926943442,0.93814387,114910.0,114900.0,0.0094]
[1757926943843,1.18814387,114910.0,114900.0,0.0094]
[1757926944036,1.18814387,114910.0,114900.0,0.0064]
[1757926944542,1.18814387,114910.0,114900.0,0.0094]
[1757926945040,1.18814387,114910.0,114870.0,0.01349]
[1757926945344,0.0095,114880.0,114870.0,0.01349]
[1757926945645,0.92086,114880.0,114870.0,0.01349]
[1757926945938,0.02466387,114880.0,114870.0,0.03504]
[1757926946143,1.00626569,114880.0,114870.0,0.03504]
[1757926946329,0.02466387,114880.0,114870.0,0.03504]
[1757926946737,0.93510387,114880.0,114870.0,0.03504]
[1757926947443,0.02466387,114880.0,114870.0,0.04004]
[1757926947633,0.93482387,114880.0,114870.0,0.04004]
[1757926947834,0.02466387,114880.0,114870.0,0.04004]
[1757926948034,0.93422387,114880.0,114870.0,0.04004]
[1757926948339,0.93422387,114880.0,114870.0,0.29004]
[1757926948540,0.02466387,114880.0,114870.0,0.29004]
[1757926949233,1.87855595,114920.0,114880.0,0.01349]
[1757926949442,0.0095,114900.0,114890.0,0.03504]
[1757926949631,0.9185,114900.0,114890.0,0.03504]
[1757926949832,0.93338387,114900.0,114890.0,0.03504]
[1757926950035,0.01516387,114900.0,114890.0,0.28504]
[1757926950241,0.52648,114900.0,114890.0,0.28504]
[1757926951048,0.0095,114910.0,114900.0,0.03504]
[1757926951342,0.91722,114910.0,114900.0,0.03504]
[1757926951534,0.02466387,114910.0,114900.0,0.28504]
[1757926951741,0.93238387,114910.0,114900.0,0.28504]
[1757926951934,0.01516387,114910.0,114900.0,0.28504]
[1757926952133,0.0095,114930.0,114920.0,0.03504]
[1757926952332,0.09575333,114930.0,114920.0,0.03504]
[1757926952846,0.67975333,114930.0,114920.0,0.03504]
[1757926953144,1.00243333,114930.0,114920.0,0.03504]
[1757926953741,1.00163333,114930.0,114920.0,0.03504]
[1757926954035,1.00175333,114930.0,114920.0,0.03504]
[1757926954237,1.00275333,114930.0,114920.0,0.03504]
[1757926954742,1.00215333,114930.0,114920.0,0.03504]
[1757926955535,0.09675333,114930.0,114920.0,0.03504]
[1757926955733,0.07208946,114930.0,114920.0,0.28504]
[1757926956133,0.97620946,114930.0,114920.0,0.28504]
[1757926956337,0.07208946,114930.0,114920.0,0.28504]
[1757926959046,0.07208946,114930.0,114920.0,0.29799261]
[1757926959243,0.07208946,114930.0,114920.0,0.04799261]
[1757926962744,0.08158946,114930.0,114920.0,0.04799261]
[1757926963541,0.07208946,114930.0,114920.0,0.04799261]
[1757926963849,1.24535333,114930.0,114920.0,0.04799261]
[1757926965051,1.24535333,114930.0,114920.0,0.03504]
[1757926965238,1.24463333,114930.0,114920.0,0.03504]
[1757926968145,0.98329333,114930.0,114920.0,0.04799703]
[1757926968742,0.99279333,114930.0,114920.0,0.04799703]
[1757926969256,0.98329333,114930.0,114920.0,0.04799703]
[1757926969854,0.09675333,114930.0,114920.0,0.04799703]
[1757926970056,0.99583333,114930.0,114920.0,0.04799703]
[1757926971354,0.99583333,114930.0,114920.0,0.03504]
[1757926972355,0.99583333,114930.0,114920.0,0.04799788]
[1757926973061,0.07208946,114930.0,114920.0,0.04799788]
[1757926974255,0.07208946,114930.0,114920.0,0.29799788]
[1757926974456,0.001,114930.0,114920.0,0.29800079]
[1757926975459,0.001,114930.0,114920.0,0.32141906]
[1757926975960,0.001,114930.0,114920.0,0.32142394]
[1757926977656,2.58946833,114960.0,114950.0,0.03564]
[1757926977857,2.6043522,114960.0,114950.0,0.04860567]
[1757926978059,0.01380833,114960.0,114950.0,0.04860567]
[1757926978363,0.0666,114970.0,114960.0,0.03564]
[1757926978561,0.08176387,114970.0,114960.0,0.04860567]
[1757926979259,0.10688214,114970.0,114960.0,0.04860567]
[1757926980564,0.17529706,114970.0,114960.0,0.04860567]
[1757926980762,0.17529706,114970.0,114960.0,0.07200182]
[1757926981062,0.15063319,114970.0,114960.0,0.07200182]
[1757926981252,0.0571,114970.0,114960.0,0.32200182]
[1757926981456,0.0611,114970.0,114960.0,0.32200182]
[1757926981757,0.0254403,114990.0,114980.0,0.03564]
[1757926981758,0.02319,114990.0,114980.0,0.03564]
[1757926982464,0.30120387,114990.0,114980.0,0.02207]
[1757926983057,0.03604,114980.0,114970.0,0.02207]
[1757926983259,0.03604,114970.0,114960.0,0.03564]
[1757926983467,0.03604,114970.0,114960.0,0.02207]
[1757926983658,0.05120387,114970.0,114960.0,0.02207]
[1757926985162,0.08192266,114970.0,114960.0,0.02207]
[1757926985364,0.03604,114960.0,114950.0,0.02207]
[1757926985760,0.05120387,114960.0,114950.0,0.03548]
[1757926985967,0.04920387,114960.0,114950.0,0.03548]
[1757926986366,0.04920387,114960.0,114950.0,0.02207]
[1757926986868,0.04920387,114960.0,114950.0,0.02507]
[1757926987366,0.94264387,114960.0,114950.0,0.003]
[1757926987964,0.94264387,114960.0,114950.0,0.02569]
[1757926988163,0.04920387,114960.0,114950.0,0.0391]
[1757926988364,0.02319,114960.0,114950.0,0.0391]
[1757926990068,0.05129387,114960.0,114950.0,0.02569]
[1757926990762,0.03835387,114960.0,114950.0,0.0391]
[1757926991969,0.05129387,114960.0,114950.0,0.02569]
[1757926993664,0.09150944,114970.0,114960.0,0.0361]
[1757926993969,0.10667331,114970.0,114960.0,0.0361]
[1757926994758,0.03566,114960.0,114950.0,0.0391]
[1757926995870,0.03566,114960.0,114950.0,0.0361]
[1757926996459,0.02272,114960.0,114950.0,0.0361]
[1757926997963,0.06598774,114960.0,114950.0,0.0361]
[1757926998168,0.05082387,114960.0,114950.0,0.02269]
[1757926998667,0.04222387,114960.0,114950.0,0.02269]
[1757927000072,0.02928387,114960.0,114950.0,0.0361]
[1757927000368,0.06878944,114970.0,114950.0,0.0361]
[1757927000675,0.01516387,114970.0,114960.0,0.0361]
[1757927001470,0.03788387,114970.0,114960.0,0.0361]
[1757927001667,0.01516387,114970.0,114960.0,0.0361]
[1757927001874,0.03788387,114970.0,114960.0,0.0361]
[1757927002876,0.03788387,114970.0,114950.0,0.01341]
[1757927002877,0.05082387,114970.0,114950.0,0.01341]
[1757927003075,0.03566,114960.0,114950.0,0.02269]
[1757927003276,0.03566,114960.0,114940.0,0.01357]
[1757927003471,0.03566,114950.0,114940.0,0.03626]
[1757927003678,0.03566,114950.0,114940.0,0.02269]
[1757927003879,0.05082387,114950.0,114940.0,0.02269]
[1757927004068,0.05777387,114950.0,114940.0,0.02269]
[1757927005076,0.04483387,114950.0,114940.0,0.0361]
[1757927005282,0.04983387,114950.0,114940.0,0.0361]
[1757927006871,0.06377387,114950.0,114940.0,0.0361]
[1757927007478,0.05977387,114950.0,114940.0,0.0361]
[1757927007974,0.05977387,114950.0,114940.0,0.02269]
[1757927008276,0.06177387,114950.0,114940.0,0.02269]
[1757927011578,0.06177387,114950.0,114930.0,0.01341]
[1757927011579,0.02272,114930.0,114920.0,0.0361]
[1757927011774,0.00231826,114930.0,114920.0,0.0361]
[1757927012775,0.02389,114950.0,114920.0,0.0361]
[1757927012976,0.02272,114940.0,114930.0,0.0361]
[1757927013373,0.03788387,114940.0,114930.0,0.0361]
[1757927014376,0.01516387,114940.0,114930.0,0.0361]
[1757927015081,0.03788387,114940.0,114930.0,0.0361]
[1757927015677,0.03988387,114940.0,114930.0,0.0361]
[1757927021478,0.01716387,114940.0,114930.0,0.0361]
[1757927021676,0.03896387,114940.0,114930.0,0.0361]
[1757927025075,0.28896387,114940.0,114920.0,0.01341]
[1757927025280,0.03896387,114940.0,114920.0,0.01341]
[1757927025579,0.02396387,114940.0,114920.0,0.01341]
[1757927025771,0.03092387,114940.0,114920.0,0.01341]
[1757927025975,0.03092387,114940.0,114910.0,0.03331357]
[1757927026174,0.03092387,114940.0,114920.0,0.01291]
[1757927026779,0.06164266,114940.0,114920.0,0.01291]
[1757927026979,0.06264266,114940.0,114920.0,0.01291]
[1757927027180,0.03192387,114940.0,114920.0,0.01391]
[1757927027588,0.06264266,114940.0,114920.0,0.01391]
[1757927029282,0.03663387,114930.0,114920.0,0.001]
[1757927029490,0.06735266,114930.0,114920.0,0.001]
[1757927029987,0.03663387,114930.0,114920.0,0.001]
[1757927030481,0.03663387,114930.0,114920.0,0.03573]
[1757927030885,0.03663387,114930.0,114920.0,0.03473]
[1757927031186,0.16182775,114930.0,114920.0,0.03573]
[1757927031388,0.09226889,114930.0,114920.0,0.03573]
[1757927032587,0.0615501,114930.0,114920.0,0.03573]
[1757927033389,0.09226889,114930.0,114920.0,0.03573]
[1757927033583,0.0615501,114930.0,114920.0,0.03573]
[1757927035689,0.03663387,114930.0,114920.0,0.03573]
[1757927036191,0.03663387,114930.0,114920.0,0.001]
[1757927036683,0.06681985,114930.0,114920.0,0.001]
[1757927037091,0.08537131,114930.0,114920.0,0.001]
[1757927038493,0.33537131,114930.0,114920.0,0.001]
[1757927038684,0.3660901,114930.0,114920.0,0.001]
[1757927038986,0.41222703,114930.0,114920.0,0.001]
[1757927039188,0.3660901,114930.0,114920.0,0.001]
[1757927039390,0.41222703,114930.0,114920.0,0.001]
[1757927039986,0.38150824,114930.0,114920.0,0.001]
[1757927040384,0.45199242,114930.0,114920.0,0.001]
[1757927041381,0.01188,114920.0,114890.0,0.01291]
[1757927041588,0.02147,114900.0,114890.0,0.0346]
[1757927041787,0.05518533,114900.0,114890.0,0.01291]
[1757927041988,0.06534533,114900.0,114880.0,0.01304]
[1757927042690,0.06534533,114900.0,114890.0,0.002]
[1757927042884,0.06534533,114900.0,114890.0,0.006]
[1757927043491,0.05518533,114900.0,114890.0,0.04073]
[1757927043792,0.05518533,114900.0,114890.0,0.03873]
[1757927043993,0.05518533,114900.0,114890.0,0.004]
[1757927044495,0.05518533,114900.0,114890.0,0.03873]
[1757927044690,0.05518533,114900.0,114890.0,0.01304]
[1757927044890,0.06214533,114900.0,114890.0,0.01304]
[1757927045093,0.06214533,114900.0,114880.0,0.01904]
[1757927045293,0.06214533,114900.0,114890.0,0.03473]
[1757927045593,0.06214533,114900.0,114890.0,0.03773]
[1757927045893,0.06214533,114900.0,114890.0,0.03973]
[1757927046093,0.06214533,114900.0,114890.0,0.28973]
[1757927046288,0.02551146,114900.0,114890.0,0.28973]
[1757927046496,0.00696,114900.0,114890.0,0.28973]
[1757927046689,0.00696,114900.0,114890.0,0.28673]
[1757927046894,0.00696,114900.0,114890.0,0.28873]
[1757927047096,0.02944,114900.0,114890.0,0.03873]
[1757927047296,0.04460387,114900.0,114890.0,0.03773]
[1757927048693,0.04460387,114900.0,114890.0,0.28773]
[1757927053099,0.06385167,114900.0,114890.0,0.28773]
[1757927055000,0.06385167,114900.0,114890.0,0.03773]
[1757927060799,0.0262078,114900.0,114890.0,0.28773]
[1757927061698,0.00696,114900.0,114890.0,0.28773]
[1757927064696,0.00696,114900.0,114890.0,0.03773]
[1757927067507,0.02657719,114900.0,114890.0,0.03773]
[1757927069200,0.00696,114900.0,114890.0,0.28773]
[1757927069403,0.00696,114900.0,114890.0,0.55433]
[1757927069602,0.00696,114900.0,114890.0,0.28773]
[1757927070199,0.12315016,114930.0,114920.0,0.03633]
[1757927070404,0.05725962,114930.0,114920.0,0.03633]
[1757927071505,0.05825962,114930.0,114920.0,0.03633]
[1757927072103,0.33851943,114930.0,114920.0,0.03633]
[1757927072306,0.34547943,114930.0,114910.0,0.0133]
[1757927072613,0.03764387,114920.0,114910.0,0.0133]
[1757927072813,0.05725962,114920.0,114910.0,0.0133]
[1757927073014,0.05725962,114920.0,114910.0,0.03633]
[1757927073410,0.31913962,114920.0,114900.0,0.0133]
[1757927073611,0.1461375,114920.0,114900.0,0.0133]
[1757927074214,0.1461375,114920.0,114910.0,0.02303]
[1757927074415,0.1342575,114920.0,114910.0,0.03633]
[1757927074712,0.08805877,114920.0,114910.0,0.03633]
[1757927077020,0.08905877,114920.0,114910.0,0.03633]
[1757927079214,0.08905877,114920.0,114900.0,0.0133]
[1757927079419,0.06944302,114920.0,114900.0,0.0133]
[1757927079618,0.08905877,114920.0,114900.0,0.0133]
[1757927079818,0.08905877,114920.0,114910.0,0.02178]
[1757927080222,0.08905877,114920.0,114910.0,0.03574]
[1757927080422,0.97697877,114920.0,114910.0,0.03574]
[1757927080622,0.97597877,114920.0,114910.0,0.03574]
[1757927082120,0.08805877,114920.0,114910.0,0.03574]
[1757927082323,0.94513962,114920.0,114910.0,0.03574]
[1757927082720,0.94613962,114920.0,114910.0,0.03574]
[1757927083625,0.94597962,114920.0,114910.0,0.03574]
[1757927084026,0.05825962,114920.0,114910.0,0.03574]
[1757927084227,0.94577962,114920.0,114910.0,0.03574]
[1757927088527,0.05825962,114920.0,114910.0,0.03574]
[1757927088729,0.94549962,114920.0,114910.0,0.03574]
[1757927089130,0.93033575,114920.0,114910.0,0.03574]
[1757927089333,0.94549962,114920.0,114910.0,0.03574]
[1757927090234,0.02061575,114920.0,114910.0,0.28574]
[1757927091333,0.04391575,114920.0,114910.0,0.28574]
[1757927098038,0.04428241,114920.0,114910.0,0.28574]
[1757927098930,0.02098241,114920.0,114910.0,0.03574]
[1757927099135,0.02098241,114920.0,114910.0,0.28574]
[1757927100336,0.001,114920.0,114910.0,0.28574]
[1757927100533,0.001,114920.0,114910.0,0.30609545]
[1757927100732,0.00696,114940.0,114930.0,0.01288]
[1757927100937,0.00696,114940.0,114930.0,0.03424]
[1757927101138,0.00696,114940.0,114930.0,0.28424]
[1757927101639,0.09915731,114970.0,114930.0,0.28424]
[1757927101936,0.01997023,114970.0,114960.0,0.03424]
[1757927102144,0.09244609,114980.0,114970.0,0.03424]
[1757927102340,0.05476384,114980.0,114970.0,0.02136]
[1757927102539,0.31992771,114980.0,114960.0,0.01288]
[1757927102840,0.06992771,114980.0,114960.0,0.01288]
[1757927103334,0.06992771,114980.0,114970.0,0.02136]
[1757927103944,0.07192771,114980.0,114970.0,0.02136]
[1757927104440,0.07192771,114980.0,114960.0,0.01288]
[1757927104836,0.07192771,114980.0,114950.0,0.03338964]
[1757927104837,0.00696,114970.0,114950.0,0.03338964]
[1757927105036,0.0233,114960.0,114950.0,0.05474964]
[1757927105438,0.03846387,114960.0,114950.0,0.05474964]
[1757927105635,0.10843586,114960.0,114950.0,0.03424]
[1757927105834,0.0583729,114960.0,114950.0,0.03424]
[1757927106041,0.3153329,114960.0,114950.0,0.02136]
[1757927106238,0.01152,114950.0,114930.0,0.01288]
[1757927106446,0.02298,114940.0,114930.0,0.03473]
[1757927106838,0.0695682,114940.0,114930.0,0.03473]
[1757927107347,0.0695682,114940.0,114930.0,0.02185]
[1757927107639,0.0695682,114940.0,114920.0,0.01288]
[1757927108939,0.0695682,114940.0,114920.0,0.01588]
[1757927109950,0.04510387,114930.0,114920.0,0.004]
[1757927110152,0.0650082,114930.0,114920.0,0.004]
[1757927110353,0.8905282,114930.0,114920.0,0.004]
[1757927111053,1.1405282,114930.0,114920.0,0.004]
[1757927112055,1.1995282,114930.0,114920.0,0.004]
[1757927115256,1.1992082,114930.0,114920.0,0.004]
[1757927115554,0.3150082,114930.0,114920.0,0.004]
[1757927115748,1.1992082,114930.0,114920.0,0.004]
[1757927116657,0.1099737,114910.0,114900.0,0.03453]
[1757927116857,0.12513757,114910.0,114900.0,0.03453]
[1757927117454,0.12513757,114910.0,114900.0,0.28453]
[1757927117858,0.1449796,114910.0,114900.0,0.28453]
[1757927119055,0.1449796,114910.0,114900.0,0.28853]
[1757927119556,0.1219996,114910.0,114900.0,0.28853]
[1757927119755,0.1219996,114910.0,114900.0,0.29053]
[1757927119957,0.11356889,114910.0,114900.0,0.29053]
[1757927120358,0.0869937,114910.0,114900.0,0.29053]
[1757927121461,0.11237272,114910.0,114900.0,0.29053]
[1757927122065,0.13535272,114910.0,114900.0,0.29053]
[1757927122362,0.0869937,114910.0,114900.0,0.29053]
[1757927132071,0.0869937,114910.0,114900.0,0.55713]
[1757927138071,0.1096437,114910.0,114900.0,0.55713]
[1757927138272,0.0869937,114910.0,114900.0,0.55713]
[1757927139270,0.0869937,114910.0,114900.0,0.30713]
[1757927139665,0.1096437,114910.0,114900.0,0.30713]
[1757927140776,0.3596437,114910.0,114900.0,0.30713]
[1757927141171,0.37480757,114910.0,114900.0,0.30713]
[1757927142272,0.39471843,114910.0,114900.0,0.30713]
[1757927143172,0.37206843,114910.0,114900.0,0.30713]
[1757927143378,0.35215757,114910.0,114900.0,0.30713]
[1757927143784,0.35215757,114910.0,114900.0,0.04053]
[1757927144278,0.37480757,114910.0,114900.0,0.04053]
[1757927151683,0.39470017,114910.0,114900.0,0.04053]
[1757927152076,0.37480757,114910.0,114900.0,0.04053]
[1757927153186,0.39470148,114910.0,114900.0,0.04053]
[1757927154281,0.37205148,114910.0,114900.0,0.04053]
[1757927154488,0.39366148,114910.0,114900.0,0.04053]
[1757927156275,0.10688761,114910.0,114900.0,0.04053]
[1757927157484,0.12849761,114910.0,114900.0,0.04053]
[1757927157684,0.10688761,114910.0,114900.0,0.04053]
[1757927158183,0.10688761,114910.0,114900.0,0.29053]
[1757927158384,0.0869937,114910.0,114900.0,0.31346564]
[1757927159283,0.0869937,114910.0,114900.0,0.29053]
[1757927160283,0.0869937,114910.0,114900.0,0.31310793]
[1757927163388,0.0869937,114910.0,114900.0,0.04053]
[1757927163595,0.10689158,114910.0,114900.0,0.04053]
[1757927166304,0.0869937,114910.0,114900.0,0.29053]
[1757927166495,0.0519937,114910.0,114900.0,0.29053]
[1757927167295,0.0519937,114910.0,114900.0,0.57053]
[1757927167496,0.0869869,114920.0,114910.0,0.03638]
[1757927168391,0.0519869,114920.0,114910.0,0.03638]
[1757927168902,0.0519869,114920.0,114910.0,0.91814]
[1757927169700,0.0519869,114920.0,114910.0,0.98620793]
[1757927170100,0.0519869,114920.0,114910.0,0.10844793]
[1757927170301,0.0519869,114920.0,114910.0,0.98596793]
[1757927170697,0.0169869,114920.0,114910.0,0.98596793]
[1757927170905,0.0939386,114930.0,114910.0,0.98596793]
[1757927171105,0.11382045,114930.0,114910.0,1.55295913]
[1757927171301,0.0939386,114930.0,114910.0,1.55295913]
[1757927172000,0.01302,114950.0,114920.0,0.0869859]
[1757927172201,0.01988172,114950.0,114930.0,0.87728]
[1757927172397,0.0301,114960.0,114930.0,0.87728]
[1757927172604,0.06512959,114960.0,114930.0,0.87728]
[1757927173400,0.04526387,114960.0,114930.0,0.87728]
[1757927173602,0.06817108,114960.0,114930.0,0.87728]
[1757927173809,0.01302,114950.0,114930.0,0.87728]
[1757927174002,0.03616,114950.0,114930.0,0.89939552]
[1757927175010,0.01302,114950.0,114930.0,0.89939552]
[1757927175909,0.03616,114950.0,114940.0,0.87688]
[1757927176415,0.03616,114950.0,114940.0,0.87668]
[1757927177211,0.01302,114950.0,114940.0,0.87668]
[1757927177513,0.01502,114950.0,114940.0,0.87668]
[1757927177714,0.002,114950.0,114940.0,0.87668]
[1757927179313,0.002,114950.0,114940.0,0.87616]
[1757927179514,0.002,114950.0,114930.0,0.28877713]
[1757927179714,0.002,114950.0,114940.0,0.87612]
[1757927180612,0.001,114950.0,114940.0,0.87612]
[1757927180811,0.001,114950.0,114940.0,1.00612]
[1757927181213,0.00696,114970.0,114940.0,1.8130904]
[1757927181424,0.01302,114980.0,114940.0,1.5630904]
[1757927181623,0.02818387,114980.0,114940.0,1.5630904]
[1757927181825,0.02818387,114980.0,114940.0,1.10612]
[1757927182133,0.01302,114970.0,114940.0,1.10612]
[1757927182530,0.001,114950.0,114940.0,1.10612]
[1757927182830,0.001,114950.0,114940.0,0.87564]
[1757927183024,0.001,114950.0,114940.0,0.12]
[1757927183329,0.01402,114970.0,114940.0,1.0825706]
[1757927183524,0.01502,114970.0,114940.0,1.5625706]
[1757927184024,0.001,114970.0,114940.0,1.6725706]
[1757927184225,0.01302,114980.0,114940.0,1.0169706]
[1757927184422,0.05132387,114980.0,114940.0,1.0169706]
[1757927184618,0.05132387,114980.0,114950.0,0.87536]
[1757927184823,0.02818387,114980.0,114950.0,1.47536]
[1757927185230,0.01302,114970.0,114960.0,0.87528]
[1757927185433,0.01302,114970.0,114940.0,0.02005257]
[1757927185626,0.01302,114970.0,114950.0,0.8752]
[1757927185826,0.01302,114970.0,114950.0,1.1052]
[1757927186628,0.01302,114970.0,114950.0,0.23]
[1757927186827,0.01302,114970.0,114960.0,0.8752]
[1757927187131,0.01302,114980.0,114960.0,0.8752]
[1757927187329,0.001,114970.0,114960.0,0.8752]
[1757927187525,0.002,114970.0,114960.0,0.8752]
[1757927187832,0.002,114970.0,114960.0,0.89523246]
[1757927188036,0.002,114970.0,114960.0,0.02003246]
[1757927188234,0.002,114970.0,114960.0,0.85663246]
[1757927189126,0.003,114970.0,114960.0,0.85663246]
[1757927189332,0.004,114970.0,114960.0,0.85663246]
[1757927190324,0.004,114970.0,114960.0,1.25327483]
[1757927190637,0.01302,115000.0,114960.0,1.50327483]
[1757927190827,0.01302,114990.0,114960.0,1.16631923]
[1757927191027,0.01302,114990.0,114960.0,1.62327443]
[1757927191227,0.01302,114990.0,114970.0,0.086947]
[1757927191432,0.01302,115000.0,114980.0,0.8744]
[1757927191736,0.05132387,115000.0,114980.0,0.8744]
[1757927192037,0.05132387,115000.0,114980.0,0.8973998]
[1757927193338,0.05132387,115000.0,114980.0,0.8983998]
[1757927193638,0.07122101,115000.0,114990.0,0.87416]
[1757927193936,0.07122101,115000.0,114990.0,0.87408]
[1757927194138,0.01302,114990.0,114980.0,0.0239998]
[1757927194527,0.01302,114990.0,114980.0,0.2277598]
[1757927194836,0.01302,115000.0,114980.0,0.2277598]
[1757927195028,0.05132387,115000.0,114980.0,0.2277598]
[1757927195228,0.07122274,115000.0,114990.0,0.37648]
[1757927195425,0.07122274,115000.0,114980.0,0.0239998]
[1757927195630,0.07222274,115000.0,114980.0,0.3881598]
[1757927195831,0.07222274,115000.0,114980.0,0.7340798]
[1757927196233,0.07222274,115000.0,114980.0,0.7330798]
[1757927196634,0.07122274,115000.0,114980.0,0.7330798]
[1757927196835,0.07122274,115000.0,114980.0,0.8967598]
[1757927197032,0.07122274,115000.0,114980.0,0.87472]
[1757927197234,0.04808274,115000.0,114980.0,1.16388914]
[1757927197438,0.01989887,115000.0,114980.0,0.89728914]
[1757927197629,0.01989887,115000.0,114990.0,0.87364]
[1757927197828,0.01989887,115000.0,114990.0,0.8736]
[1757927198036,0.03338887,115000.0,114990.0,0.8736]
[1757927198437,0.05554887,115000.0,114990.0,0.8736]
[1757927198642,0.03338887,115000.0,114990.0,0.8736]